bitfinex/quotes_BTCUSD_20251010
["timestamp","ask_amount","ask_price","bid_price","bid_amount"]
[1760098015663,2.22716933,121820.0,121810.0,0.00102387]
[1760098019592,1.99520933,121820.0,121810.0,0.00102387]
[1760098019793,2.22716933,121820.0,121810.0,0.00102387]
[1760098019989,2.27989391,121820.0,121810.0,0.00102387]
[1760098020217,2.22716933,121820.0,121810.0,0.00102387]
[1760098020810,1.99520933,121820.0,121810.0,0.00102387]
[1760098021030,2.22716933,121820.0,121810.0,0.00102387]
[1760098021426,2.22719257,121820.0,121810.0,0.00102387]
[1760098021664,1.99523257,121820.0,121810.0,0.00102387]
[1760098021881,2.22719257,121820.0,121810.0,0.00102387]
[1760098022726,1.7998662,121820.0,121810.0,0.00102387]
[1760098022972,2.31267257,121820.0,121810.0,0.00102387]
[1760098024280,2.08071257,121820.0,121810.0,0.00102387]
[1760098024487,1.99523257,121820.0,121810.0,0.00102387]
[1760098024710,2.31267257,121820.0,121810.0,0.00102387]
[1760098025367,1.99523257,121820.0,121810.0,0.00102387]
[1760098025802,2.31263257,121820.0,121810.0,0.00102387]
[1760098027992,1.99523257,121820.0,121810.0,0.00102387]
[1760098028201,2.31263257,121820.0,121810.0,0.00102387]
[1760098030847,2.08071257,121820.0,121810.0,0.00102387]
[1760098031063,2.31263257,121820.0,121810.0,0.00102387]
[1760098032468,1.99523257,121820.0,121810.0,0.00102387]
[1760098032695,2.31263257,121820.0,121810.0,0.00102387]
[1760098033131,2.08071257,121820.0,121810.0,0.00102387]
[1760098033340,2.31259257,121820.0,121810.0,0.00102387]
[1760098035580,1.7146602,121820.0,121810.0,0.00102387]
[1760098035803,2.35620228,121820.0,121810.0,0.00102387]
[1760098037601,1.3973002,121820.0,121810.0,0.00102387]
[1760098037823,2.33447328,121820.0,121810.0,0.00102387]
[1760098038480,2.33453074,121820.0,121810.0,0.00102387]
[1760098038948,1.64557366,121820.0,121810.0,0.00102387]
[1760098039168,2.28711574,121820.0,121810.0,0.00102387]
[1760098040779,1.64557366,121820.0,121810.0,0.00102387]
[1760098041009,1.96975574,121820.0,121810.0,0.00102387]
[1760098041237,1.77469306,121820.0,121810.0,0.00102387]
[1760098041466,2.00657306,121820.0,121810.0,0.00102387]
[1760098045513,1.89293006,121820.0,121810.0,0.00102387]
[1760098045721,2.02243706,121820.0,121810.0,0.00102387]
[1760098046615,1.25138798,121820.0,121810.0,0.00102387]
[1760098046825,1.89293006,121820.0,121810.0,0.00102387]
[1760098047044,2.02243706,121820.0,121810.0,0.00102387]
[1760098047516,1.89293006,121820.0,121810.0,0.00102387]
[1760098047994,1.87755085,121820.0,121810.0,0.00102387]
[1760098048198,1.89296,121820.0,121810.0,0.00102387]
[1760098049574,1.87755085,121820.0,121810.0,0.00102387]
[1760098049805,1.89295955,121820.0,121810.0,0.00102387]
[1760098050670,1.25482851,121820.0,121810.0,0.00102387]
[1760098050883,1.57218851,121820.0,121810.0,0.00102387]
[1760098051316,0.93405747,121820.0,121810.0,0.165214]
[1760098051530,1.87218851,121820.0,121810.0,0.165214]
[1760098051754,1.53218851,121820.0,121810.0,0.165214]
[1760098051955,1.72438289,121820.0,121810.0,0.165214]
[1760098052182,1.10128769,121820.0,121810.0,0.165214]
[1760098052664,0.29898,121820.0,121810.0,0.19815566]
[1760098052869,0.53086,121820.0,121810.0,0.19815566]
[1760098053082,0.53086,121820.0,121810.0,0.165214]
[1760098053287,0.85163104,121820.0,121810.0,0.165214]
[1760098053523,0.69503665,121820.0,121810.0,0.165214]
[1760098053745,0.85163104,121820.0,121810.0,0.165214]
[1760098054162,0.53086,121820.0,121810.0,0.165214]
[1760098055026,0.29898,121820.0,121810.0,0.165214]
[1760098055240,0.53086,121820.0,121810.0,0.23023276]
[1760098057244,0.53086,121820.0,121810.0,0.165214]
[1760098058750,0.53086,121820.0,121810.0,0.18163301]
[1760098059950,0.29898,121820.0,121810.0,0.18163301]
[1760098060177,0.53082,121820.0,121810.0,0.18163301]
[1760098061094,0.29898,121820.0,121810.0,0.18163301]
[1760098061312,0.53082,121820.0,121810.0,0.18163301]
[1760098064234,0.29898,121820.0,121810.0,0.18163301]
[1760098064466,0.53082,121820.0,121810.0,0.24829367]
[1760098064680,0.53082,121820.0,121810.0,0.23187466]
[1760098065140,0.53082,121820.0,121810.0,0.165214]
[1760098065357,0.29898,121820.0,121810.0,0.18163301]
[1760098065830,0.53082,121820.0,121810.0,0.18163301]
[1760098067664,0.85159104,121820.0,121810.0,0.18163301]
[1760098068362,0.85159104,121820.0,121810.0,0.165214]
[1760098068986,0.29898,121820.0,121810.0,0.165214]
[1760098069234,0.53082,121820.0,121810.0,0.165214]
[1760098069449,0.29898,121820.0,121810.0,0.165214]
[1760098069674,0.53082,121820.0,121810.0,0.18163301]
[1760098070106,0.29898,121820.0,121810.0,0.24829367]
[1760098070323,0.50598,121820.0,121810.0,0.23187466]
[1760098071444,0.52897,121820.0,121810.0,0.23187466]
[1760098071668,0.50598,121820.0,121810.0,0.23187466]
[1760098071897,0.50598,121820.0,121810.0,0.5526457]
[1760098072558,0.52897,121820.0,121810.0,0.5526457]
[1760098072998,0.24628,121820.0,121810.0,0.57981633]
[1760098073367,0.24628,121820.0,121810.0,0.81165633]
[1760098073578,0.24628,121820.0,121810.0,0.57981633]
[1760098073767,0.24628,121820.0,121810.0,0.81165633]
[1760098073956,0.24628,121820.0,121810.0,0.92493029]
[1760098075855,0.24628,121820.0,121810.0,1.24570133]
[1760098076064,0.24628,121820.0,121810.0,0.92493029]
[1760098076688,0.24628,121820.0,121810.0,0.71776344]
[1760098076896,0.24628,121820.0,121810.0,0.94960344]
[1760098077720,0.24628,121820.0,121810.0,0.71776344]
[1760098077926,0.24628,121820.0,121810.0,0.94960344]
[1760098081741,0.24628,121820.0,121810.0,0.92243281]
[1760098082173,0.24628,121820.0,121810.0,0.92239281]
[1760098086078,0.24628,121820.0,121810.0,1.24316385]
[1760098086314,0.24628,121820.0,121810.0,1.01136385]
[1760098086527,0.24628,121820.0,121810.0,0.92239281]
[1760098086733,0.24628,121820.0,121810.0,0.69059281]
[1760098086940,0.24628,121820.0,121810.0,0.92239281]
[1760098087177,0.24628,121820.0,121810.0,1.24316385]
[1760098087393,0.24628,121820.0,121810.0,1.01136385]
[1760098087631,0.24628,121820.0,121810.0,1.24316385]
[1760098090190,0.24628,121820.0,121810.0,1.01136385]
[1760098090407,0.24628,121820.0,121810.0,1.24316385]
[1760098090594,0.24628,121820.0,121810.0,1.01136385]
[1760098090840,0.24628,121820.0,121810.0,1.24316385]
[1760098091759,0.24628,121820.0,121810.0,1.01136385]
[1760098091976,0.24628,121820.0,121810.0,1.24416385]
[1760098092188,0.24628,121820.0,121810.0,1.24516385]
[1760098094996,0.24628,121820.0,121810.0,1.01336385]
[1760098095213,0.24628,121820.0,121810.0,1.24516385]
[1760098096800,0.24628,121820.0,121810.0,1.01336385]
[1760098097013,0.24628,121820.0,121810.0,1.24516385]
[1760098097668,0.24628,121820.0,121810.0,1.03091104]
[1760098098547,0.24628,121820.0,121810.0,1.03087104]
[1760098099665,0.24628,121820.0,121810.0,0.79911104]
[1760098099914,0.24628,121820.0,121810.0,1.03087104]
[1760098100814,0.24628,121820.0,121810.0,0.79911104]
[1760098101036,0.24628,121820.0,121810.0,1.03087104]
[1760098101260,0.24628,121820.0,121810.0,1.37087104]
[1760098103893,0.24628,121820.0,121810.0,1.13911104]
[1760098104108,0.24628,121820.0,121810.0,1.37087104]
[1760098104331,0.24628,121820.0,121810.0,1.13911104]
[1760098104545,0.24628,121820.0,121810.0,1.37087104]
[1760098104967,0.24628,121820.0,121810.0,1.13911104]
[1760098105183,0.24628,121820.0,121810.0,1.37087104]
[1760098105396,0.24628,121820.0,121810.0,1.13911104]
[1760098105641,0.24628,121820.0,121810.0,1.37087104]
[1760098109205,0.24628,121820.0,121810.0,1.13911104]
[1760098109445,0.24628,121820.0,121810.0,1.37087104]
[1760098116142,0.24628,121820.0,121810.0,1.13911104]
[1760098116373,0.24628,121820.0,121810.0,1.37087104]
[1760098120340,0.24628,121820.0,121810.0,1.13911104]
[1760098120559,0.24628,121820.0,121810.0,1.37087104]
[1760098121470,0.24628,121820.0,121810.0,1.13911104]
[1760098121692,0.24628,121820.0,121810.0,1.37087104]
[1760098123249,0.24628,121820.0,121810.0,1.13911104]
[1760098123479,0.24628,121820.0,121810.0,1.37087104]
[1760098126696,0.24628,121820.0,121810.0,1.13911104]
[1760098126916,0.24628,121820.0,121810.0,1.37087104]
[1760098127564,0.24628,121820.0,121810.0,1.13911104]
[1760098127775,0.24628,121820.0,121810.0,1.37087104]
[1760098129381,0.24628,121820.0,121810.0,1.13911104]
[1760098129839,0.24628,121820.0,121810.0,1.37087104]
[1760098132637,0.24628,121820.0,121810.0,0.71182177]
[1760098132862,0.24628,121820.0,121810.0,1.13911104]
[1760098133084,0.24628,121820.0,121810.0,1.45631104]
[1760098139613,0.24628,121820.0,121810.0,1.22455104]
[1760098139832,0.24628,121820.0,121810.0,1.45631104]
[1760098142082,0.24628,121820.0,121810.0,1.22455104]
[1760098142310,0.00015068,121830.0,121820.0,0.96161782]
[1760098142532,1e-08,121830.0,121820.0,1.12473668]
[1760098142746,1e-08,121830.0,121820.0,1.35645668]
[1760098143196,1e-08,121830.0,121820.0,1.36866668]
[1760098144835,1e-08,121830.0,121820.0,1.36966668]
[1760098145313,1e-08,121830.0,121820.0,1.37066668]
[1760098147615,1e-08,121830.0,121820.0,1.24938667]
[1760098147860,1e-08,121830.0,121820.0,1.48110667]
[1760098148074,1e-08,121830.0,121820.0,1.24989856]
[1760098148304,1e-08,121830.0,121820.0,0.82260929]
[1760098148531,1e-08,121830.0,121820.0,1.48161856]
[1760098148754,1e-08,121830.0,121820.0,1.24989856]
[1760098149000,1e-08,121830.0,121820.0,1.48161856]
[1760098149214,1e-08,121830.0,121820.0,1.48061856]
[1760098149433,1e-08,121830.0,121820.0,1.48161856]
[1760098149709,1e-08,121830.0,121820.0,1.16445856]
[1760098149940,1e-08,121830.0,121820.0,1.48061856]
[1760098150379,1e-08,121830.0,121820.0,1.48161856]
[1760098151480,1e-08,121830.0,121820.0,1.16445856]
[1760098151716,1e-08,121830.0,121820.0,1.48161856]
[1760098154654,1e-08,121830.0,121820.0,1.24989856]
[1760098154877,1e-08,121830.0,121820.0,1.48161856]
[1760098158064,1e-08,121830.0,121820.0,1.24989856]
[1760098158284,1e-08,121830.0,121820.0,1.48161856]
[1760098158501,1e-08,121830.0,121820.0,1.24989856]
[1760098158719,1e-08,121830.0,121820.0,1.48161856]
[1760098158943,1e-08,121830.0,121820.0,1.05432929]
[1760098159177,1e-08,121830.0,121820.0,1.54357014]
[1760098159646,1e-08,121830.0,121820.0,1.09449271]
[1760098159909,1e-08,121830.0,121820.0,1.73198454]
[1760098160771,1e-08,121830.0,121820.0,1.50030454]
[1760098160987,1e-08,121830.0,121820.0,1.73198454]
[1760098162082,1e-08,121830.0,121820.0,1.50030454]
[1760098162529,1e-08,121830.0,121820.0,1.73198454]
[1760098163904,1e-08,121830.0,121820.0,1.41486454]
[1760098164133,1e-08,121830.0,121820.0,1.50030454]
[1760098164355,1e-08,121830.0,121820.0,1.64654454]
[1760098164574,1e-08,121830.0,121820.0,1.73198454]
[1760098165502,1e-08,121830.0,121820.0,1.09449271]
[1760098165758,0.01537001,121830.0,121820.0,0.2620206]
[1760098166199,0.01537001,121830.0,121820.0,1.18422433]
[1760098166417,1e-08,121830.0,121820.0,1.15407243]
[1760098166646,1e-08,121830.0,121820.0,1.18422433]
[1760098166884,1e-08,121830.0,121820.0,0.7121693]
[1760098167122,0.01537001,121830.0,121820.0,1.26422113]
[1760098167358,0.01537001,121830.0,121820.0,1.03254113]
[1760098167581,0.01537001,121830.0,121820.0,1.26422113]
[1760098167801,0.01537001,121830.0,121820.0,1.03154113]
[1760098168019,0.01537001,121830.0,121820.0,1.18322433]
[1760098168248,0.01537001,121830.0,121820.0,0.6311725]
[1760098168466,0.37248184,121830.0,121820.0,0.8628525]
[1760098168695,0.37248184,121830.0,121820.0,0.2911725]
[1760098169410,0.37248184,121830.0,121820.0,0.5228525]
[1760098170341,0.37248184,121830.0,121820.0,0.40957854]
[1760098170574,0.37248184,121830.0,121820.0,0.17789854]
[1760098170793,0.37248184,121830.0,121820.0,0.40957854]
[1760098171038,0.37248184,121830.0,121820.0,0.17789854]
[1760098171262,0.85701684,121830.0,121820.0,0.16468854]
[1760098171478,1.11337573,121830.0,121820.0,0.00051189]
[1760098173006,0.88169573,121830.0,121820.0,0.16468854]
[1760098173229,1.19885573,121830.0,121820.0,0.16468854]
[1760098173656,0.88169573,121830.0,121820.0,0.16468854]
[1760098173869,1.19885573,121830.0,121820.0,0.16468854]
[1760098174084,0.71753256,121830.0,121820.0,0.19757641]
[1760098174298,0.62888073,121830.0,121820.0,0.19757641]
[1760098174521,0.39716073,121830.0,121820.0,0.19757641]
[1760098174734,0.62888073,121830.0,121820.0,0.19757641]
[1760098174948,0.62888073,121830.0,121820.0,0.16468854]
[1760098175190,0.39716073,121830.0,121820.0,0.16468854]
[1760098175402,0.62888073,121830.0,121820.0,0.16468854]
[1760098175847,0.39716073,121830.0,121820.0,0.16468854]
[1760098176057,0.62888073,121830.0,121820.0,0.16468854]
[1760098176719,0.39716073,121830.0,121820.0,0.16468854]
[1760098176930,0.62888073,121830.0,121820.0,0.16468854]
[1760098178205,0.7930439,121830.0,121820.0,0.16468854]
[1760098178424,0.3085089,121830.0,121820.0,0.16468854]
[1760098178849,0.62888073,121830.0,121820.0,0.16468854]
[1760098179987,0.7930439,121830.0,121820.0,0.16468854]
[1760098180206,0.7930839,121830.0,121820.0,0.16468854]
[1760098180864,0.3085489,121830.0,121820.0,0.16468854]
[1760098181093,0.62892073,121830.0,121820.0,0.16468854]
[1760098182678,0.7930839,121830.0,121820.0,0.16468854]
[1760098182936,0.62892073,121830.0,121820.0,0.16468854]
[1760098183429,1.11345573,121830.0,121820.0,0.16468854]
[1760098184096,1.11345573,121830.0,121820.0,0.00051189]
[1760098185881,3.25509675,121830.0,121820.0,0.00051189]
[1760098186100,3.51941204,121830.0,121820.0,0.00051189]
[1760098186860,3.53473179,121830.0,121820.0,0.00051189]
[1760098187338,3.53573179,121830.0,121820.0,0.00051189]
[1760098187814,6.35704279,121830.0,121820.0,0.00051189]
[1760098188038,2.49861479,121830.0,121820.0,0.00051189]
[1760098188300,8.23589028,121830.0,121820.0,0.00051189]
[1760098188511,8.61041768,121830.0,121820.0,0.00051189]
[1760098188956,3.63308627,121830.0,121820.0,0.00051189]
[1760098189201,8.63308627,121830.0,121820.0,0.00051189]
[1760098190328,8.65521301,121830.0,121820.0,0.00051189]
[1760098190571,8.42333301,121830.0,121820.0,1e-08]
[1760098190818,8.42333301,121830.0,121790.0,0.06619503]
[1760098190819,3.22319561,121800.0,121790.0,0.06619503]
[1760098191030,4.15384017,121800.0,121790.0,0.06619503]
[1760098191252,4.23228465,121800.0,121790.0,0.06619503]
[1760098191695,4.23228465,121800.0,121770.0,0.06619503]
[1760098191696,0.16423057,121780.0,121770.0,0.06619503]
[1760098191923,0.74394057,121780.0,121770.0,0.06619503]
[1760098192142,0.78000057,121780.0,121770.0,0.06619503]
[1760098192365,1.18882423,121780.0,121770.0,0.23043909]
[1760098192597,1.42074423,121780.0,121770.0,0.23299972]
[1760098192813,1.44543338,121780.0,121770.0,0.16680469]
[1760098193029,1.44543338,121780.0,121770.0,0.16730794]
[1760098193269,1.44543338,121780.0,121770.0,0.00306388]
[1760098193490,1.46840383,121780.0,121770.0,0.00306388]
[1760098195936,1.46840344,121780.0,121770.0,0.00306388]
[1760098196194,2.10930074,121780.0,121770.0,0.00306388]
[1760098196422,2.40930549,121780.0,121770.0,0.00306388]
[1760098197342,2.17738549,121780.0,121770.0,0.00306388]
[1760098197830,2.40930549,121780.0,121770.0,0.00306388]
[1760098198296,2.42695637,121780.0,121770.0,0.00306388]
[1760098199430,2.51011843,121780.0,121770.0,0.00306388]
[1760098199665,2.57815843,121780.0,121770.0,0.00306388]
[1760098199944,2.81007843,121780.0,121770.0,0.00306388]
[1760098200201,2.49267843,121780.0,121770.0,0.00306388]
[1760098200466,2.81008301,121780.0,121770.0,0.00306388]
[1760098201016,2.8100976,121780.0,121770.0,0.00306388]
[1760098201551,2.78540845,121780.0,121770.0,0.00306388]
[1760098202915,2.46800845,121780.0,121770.0,0.00306388]
[1760098203193,2.78540845,121780.0,121770.0,0.00306388]
[1760098203455,2.14763662,121780.0,121770.0,0.00306388]
[1760098203708,2.46503662,121780.0,121770.0,0.00306388]
[1760098204468,2.16970595,121780.0,121770.0,0.00306388]
[1760098204742,2.48710595,121780.0,121770.0,0.00306388]
[1760098205295,1.52896162,121780.0,121770.0,0.00306388]
[1760098205540,2.16657981,121780.0,121770.0,0.16730794]
[1760098205754,1.84917981,121780.0,121770.0,0.16730794]
[1760098205965,2.16661981,121780.0,121770.0,0.16730794]
[1760098206853,1.04486602,121780.0,121770.0,0.16730794]
[1760098207076,1.59719785,121780.0,121770.0,0.16730794]
[1760098207750,1.27975785,121780.0,121770.0,0.16730794]
[1760098207971,1.76142842,121780.0,121770.0,0.16730794]
[1760098208194,1.74610215,121780.0,121770.0,0.16730794]
[1760098208426,1.34224912,121780.0,121770.0,0.16730794]
[1760098208649,1.38709633,121780.0,121770.0,0.20046447]
[1760098209096,0.7492845,121780.0,121770.0,0.20046447]
[1760098209323,1.00161633,121780.0,121770.0,0.20046447]
[1760098210213,1.1658469,121780.0,121770.0,0.20046447]
[1760098210440,0.86080919,121780.0,121770.0,0.20046447]
[1760098210658,0.8684778,121780.0,121770.0,0.20046447]
[1760098211352,1.18884963,121780.0,121770.0,0.20046447]
[1760098211786,1.18884963,121780.0,121770.0,0.16730794]
[1760098212230,1.18885933,121780.0,121770.0,0.16730794]
[1760098214960,1.18883473,121780.0,121770.0,0.00306388]
[1760098215465,0.95691473,121780.0,121770.0,0.00306388]
[1760098215746,0.97898406,121780.0,121770.0,0.00306388]
[1760098215999,1.21094406,121780.0,121770.0,0.00306388]
[1760098216894,1.21095513,121780.0,121770.0,0.00306388]
[1760098218472,1.21091513,121780.0,121770.0,0.00306388]
[1760098218693,1.24044385,121780.0,121770.0,0.00306388]
[1760098219130,1.00852385,121780.0,121770.0,0.00306388]
[1760098219355,1.24044385,121780.0,121770.0,0.00306388]
[1760098219568,1.02765133,121780.0,121770.0,0.00306388]
[1760098219782,0.773662,121780.0,121770.0,0.00306388]
[1760098220004,1.005582,121780.0,121770.0,0.00306388]
[1760098220461,1.98870406,121780.0,121770.0,0.00306388]
[1760098220713,1.75678406,121780.0,121770.0,0.00306388]
[1760098221194,2.37299592,121780.0,121770.0,0.00306388]
[1760098221434,2.32870406,121780.0,121770.0,0.00306388]
[1760098221920,2.09678406,121780.0,121770.0,0.00306388]
[1760098222672,2.32870406,121780.0,121770.0,0.00306388]
[1760098223128,2.09678406,121780.0,121770.0,0.00306388]
[1760098223344,2.35089207,121780.0,121770.0,0.00306388]
[1760098223603,2.35089207,121780.0,121730.0,0.28131369]
[1760098223604,0.16428454,121740.0,121730.0,0.0004]
[1760098223822,0.71293458,121740.0,121730.0,0.00055067]
[1760098224072,1.00246004,121740.0,121730.0,0.00055067]
[1760098224322,1.44471931,121740.0,121730.0,0.00055067]
[1760098224553,0.59226267,121720.0,121710.0,0.0004]
[1760098224798,1.63478992,121720.0,121710.0,0.0004503]
[1760098225054,1.66334992,121720.0,121710.0,0.0004503]
[1760098225279,1.25844878,121720.0,121710.0,0.0004503]
[1760098225509,1.26863014,121720.0,121710.0,0.0004503]
[1760098225755,1.2507537,121720.0,121710.0,0.0004503]
[1760098225974,1.25844225,121720.0,121710.0,0.0004503]
[1760098226424,1.2507537,121720.0,121710.0,0.0004503]
[1760098227118,0.59040256,121720.0,121710.0,0.16477533]
[1760098227339,1.3363137,121720.0,121710.0,0.16477533]
[1760098227801,0.85404217,121720.0,121710.0,0.16477533]
[1760098228030,1.17200217,121720.0,121710.0,0.16477533]
[1760098228448,1.15665835,121720.0,121710.0,0.16477533]
[1760098228698,0.83869835,121720.0,121710.0,0.16477533]
[1760098228915,0.34314721,121720.0,121710.0,0.19772666]
[1760098229133,0.11074721,121720.0,121710.0,0.19772666]
[1760098229345,0.34318721,121720.0,121710.0,0.16477533]
[1760098229562,0.34318721,121720.0,121710.0,0.16785023]
[1760098230232,0.34322721,121720.0,121710.0,0.16785023]
[1760098233558,0.11074721,121720.0,121710.0,0.16785023]
[1760098233770,0.34318721,121720.0,121710.0,0.16785023]
[1760098234249,0.77113835,121720.0,121710.0,0.16785023]
[1760098234690,0.11074721,121720.0,121710.0,0.20110905]
[1760098234916,0.30371721,121720.0,121710.0,0.20110905]
[1760098235138,0.29157721,121720.0,121710.0,0.20110905]
[1760098235578,0.29157721,121720.0,121710.0,0.16785023]
[1760098236300,0.29161721,121720.0,121710.0,0.16785023]
[1760098236919,0.29161721,121720.0,121710.0,0.18559159]
[1760098237133,0.08761721,121720.0,121710.0,0.16785023]
[1760098237343,0.32005721,121720.0,121710.0,0.16785023]
[1760098239524,0.29157721,121720.0,121710.0,0.16785023]
[1760098239969,0.30776721,121720.0,121710.0,0.16785023]
[1760098240203,0.32005721,121720.0,121710.0,0.16785023]
[1760098240502,0.34389721,121720.0,121710.0,0.16785023]
[1760098240731,0.53940835,121720.0,121710.0,0.16785023]
[1760098240959,0.77184835,121720.0,121710.0,0.16785023]
[1760098241644,0.53940835,121720.0,121710.0,0.16785023]
[1760098241858,0.77184835,121720.0,121710.0,0.16785023]
[1760098244144,0.53940835,121720.0,121710.0,0.16785023]
[1760098244389,0.77180835,121720.0,121710.0,0.16785023]
[1760098246613,0.53940835,121720.0,121710.0,0.16785023]
[1760098246873,0.11145721,121720.0,121710.0,0.16785023]
[1760098247094,0.34385721,121720.0,121710.0,0.20357881]
[1760098247529,0.11145721,121720.0,121710.0,0.20357881]
[1760098247748,0.08761721,121720.0,121710.0,0.20357881]
[1760098247964,0.29149721,121720.0,121710.0,0.20357881]
[1760098249064,0.07548721,121720.0,121710.0,0.20357881]
[1760098249285,0.30784721,121720.0,121710.0,0.20357881]
[1760098249913,0.07548721,121720.0,121710.0,0.20357881]
[1760098250156,0.30784721,121720.0,121710.0,0.20357881]
[1760098250590,0.07548721,121720.0,121710.0,0.20357881]
[1760098250808,0.30784721,121720.0,121710.0,0.16785023]
[1760098251458,0.32007721,121720.0,121710.0,0.16785023]
[1760098259117,0.11057721,121720.0,121710.0,0.16785023]
[1760098259806,0.34285721,121720.0,121710.0,0.16785023]
[1760098260020,0.11057721,121720.0,121710.0,0.16785023]
[1760098260459,0.34285721,121720.0,121710.0,0.16785023]
[1760098260721,0.77080835,121720.0,121710.0,0.16785023]
[1760098261384,0.70283988,121720.0,121710.0,0.16785023]
[1760098261613,0.77080835,121720.0,121710.0,0.16785023]
[1760098263460,0.53852835,121720.0,121710.0,0.16785023]
[1760098263681,0.77080835,121720.0,121710.0,0.16785023]
[1760098264764,0.77076835,121720.0,121710.0,0.16785023]
[1760098264986,0.53852835,121720.0,121710.0,0.16785023]
[1760098265202,0.77076835,121720.0,121710.0,0.16785023]
[1760098269431,0.53852835,121720.0,121710.0,0.16785023]
[1760098269673,0.77076835,121720.0,121710.0,0.16785023]
[1760098269891,0.34281721,121720.0,121710.0,0.16785023]
[1760098271211,0.11057721,121720.0,121710.0,0.16785023]
[1760098271482,0.34281721,121720.0,121710.0,0.16785023]
[1760098272771,0.11057721,121720.0,121710.0,0.16785023]
[1760098272981,0.34277721,121720.0,121710.0,0.16785023]
[1760098274263,0.11057721,121720.0,121710.0,0.16785023]
[1760098274519,0.34277721,121720.0,121710.0,0.16785023]
[1760098278241,0.11057721,121720.0,121710.0,0.16785023]
[1760098278459,0.34273721,121720.0,121710.0,0.16785023]
[1760098280461,0.11057721,121720.0,121710.0,0.16785023]
[1760098280683,0.34273721,121720.0,121710.0,0.16785023]
[1760098280903,0.11057721,121720.0,121710.0,0.16785023]
[1760098281120,0.34273721,121720.0,121710.0,0.16785023]
[1760098281578,0.66391439,121720.0,121710.0,0.16785023]
[1760098285523,0.66387439,121720.0,121710.0,0.16785023]
[1760098290595,0.9172431,121720.0,121710.0,0.16785023]
[1760098290825,1.1493231,121720.0,121710.0,0.16785023]
[1760098291051,1.1493631,121720.0,121710.0,0.16785023]
[1760098292652,1.00036516,121720.0,121710.0,0.16785023]
[1760098292878,1.30036516,121720.0,121710.0,0.16785023]
[1760098293096,1.53248516,121720.0,121710.0,0.0035252]
[1760098293537,1.53252516,121720.0,121710.0,0.0035252]
[1760098295922,1.30036516,121720.0,121710.0,0.0035252]
[1760098296342,1.53252516,121720.0,121710.0,0.0035252]
[1760098296774,1.38588516,121720.0,121710.0,0.16785023]
[1760098296992,1.30036516,121720.0,121710.0,0.16785023]
[1760098297240,1.61800516,121720.0,121710.0,0.16785023]
[1760098298473,1.61800516,121720.0,121710.0,0.0035252]
[1760098298929,0.6580108,121720.0,121710.0,0.16785023]
[1760098299120,1.61800516,121720.0,121710.0,0.16785023]
[1760098300026,1.61800516,121720.0,121710.0,0.0035252]
[1760098300484,1.61800516,121720.0,121710.0,0.16785023]
[1760098301153,1.61800516,121720.0,121710.0,0.0035252]
[1760098301154,1.93918234,121720.0,121710.0,0.0035252]
[1760098301378,1.61800516,121720.0,121710.0,0.0035252]
[1760098301598,1.68588516,121720.0,121710.0,0.0035252]
[1760098301821,1.91800516,121720.0,121710.0,0.0035252]
[1760098302721,1.68588516,121720.0,121710.0,0.0035252]
[1760098302935,1.91800516,121720.0,121710.0,0.0035252]
[1760098303148,1.91795586,121720.0,121710.0,0.0035252]
[1760098303370,1.68583586,121720.0,121710.0,0.0035252]
[1760098303584,1.91795586,121720.0,121710.0,0.0035252]
[1760098304345,2.17900829,121720.0,121710.0,0.0035252]
[1760098304582,2.91041983,121720.0,121710.0,0.0035252]
[1760098304790,3.14253983,121720.0,121710.0,0.0035252]
[1760098305229,2.88578304,121720.0,121710.0,0.0035252]
[1760098305482,3.11790304,121720.0,121710.0,0.0035252]
[1760098305705,2.88578304,121720.0,121710.0,0.0035252]
[1760098305948,3.38341105,121720.0,121710.0,0.0035252]
[1760098306165,2.65207951,121720.0,121710.0,0.0035252]
[1760098306386,7.62744272,121720.0,121710.0,0.0035252]
[1760098306852,7.60230912,121720.0,121710.0,0.0035252]
[1760098307103,7.28458912,121720.0,121710.0,0.0035252]
[1760098307335,7.94458912,121720.0,121710.0,0.0035252]
[1760098307571,2.94558912,121720.0,121710.0,0.0035252]
[1760098308009,7.94558912,121720.0,121710.0,0.0035252]
[1760098308236,7.94658912,121720.0,121710.0,0.0035252]
[1760098308445,7.93119135,121720.0,121710.0,0.0035252]
[1760098309439,2.93119135,121720.0,121710.0,0.0035252]
[1760098310362,7.93119135,121720.0,121710.0,0.0035252]
[1760098310582,7.95582814,121720.0,121710.0,0.0035252]
[1760098311053,7.29582814,121720.0,121710.0,0.0035252]
[1760098311315,7.93123135,121720.0,121710.0,0.0035252]
[1760098311897,7.27119135,121720.0,121710.0,0.0035252]
[1760098312121,5.23801735,121720.0,121710.0,0.0035252]
[1760098312331,5.54242535,121720.0,121710.0,0.0035252]
[1760098312546,5.38404535,121720.0,121710.0,0.0035252]
[1760098312757,5.51047135,121720.0,121710.0,0.0035252]
[1760098313421,5.34465835,121720.0,121710.0,0.0035252]
[1760098313638,5.27827235,121720.0,121710.0,0.0035252]
[1760098313852,5.46959835,121720.0,121710.0,0.0035252]
[1760098314069,2.93123135,121720.0,121710.0,0.0035252]
[1760098314529,5.51046335,121720.0,121710.0,0.0035252]
[1760098314737,2.93123135,121720.0,121710.0,0.0035252]
[1760098314948,5.50946335,121720.0,121710.0,0.0035252]
[1760098315151,2.93123135,121720.0,121710.0,0.0035252]
[1760098315370,4.84942235,121720.0,121710.0,0.0035252]
[1760098315588,5.43224635,121720.0,121710.0,0.0035252]
[1760098315803,2.93123135,121720.0,121710.0,0.0035252]
[1760098316020,5.43224635,121720.0,121710.0,0.0035252]
[1760098316230,5.48044935,121720.0,121710.0,0.0035252]
[1760098316669,2.93123135,121720.0,121710.0,0.0035252]
[1760098317161,5.48044935,121720.0,121710.0,0.0035252]
[1760098317379,5.14998035,121720.0,121710.0,0.0035252]
[1760098317600,5.42304335,121720.0,121710.0,0.0035252]
[1760098317813,2.93123135,121720.0,121710.0,0.0035252]
[1760098318023,5.14998035,121720.0,121710.0,0.0035252]
[1760098318256,5.11390835,121720.0,121710.0,0.0035252]
[1760098318630,3.14852417,121720.0,121710.0,0.0035252]
[1760098318858,3.47115417,121720.0,121710.0,0.0035252]
[1760098319096,2.95951517,121720.0,121710.0,0.0035252]
[1760098319328,3.50949717,121720.0,121710.0,0.0035252]
[1760098319561,3.46890918,121720.0,121710.0,0.0035252]
[1760098319789,3.47254318,121720.0,121710.0,0.0035252]
[1760098320022,2.29114318,121720.0,121710.0,0.0035252]
[1760098320283,3.59555329,121720.0,121710.0,0.0035252]
[1760098320505,3.57163929,121720.0,121710.0,0.0035252]
[1760098320751,3.53034029,121720.0,121710.0,0.0035252]
[1760098320977,3.26589429,121720.0,121710.0,0.0035252]
[1760098321206,2.29114529,121720.0,121710.0,0.0035252]
[1760098321425,2.12261029,121720.0,121710.0,0.0035252]
[1760098321643,2.42910917,121720.0,121710.0,0.0035252]
[1760098321865,2.81206746,121720.0,121710.0,0.0035252]
[1760098322076,2.84112546,121720.0,121710.0,0.0035252]